fUST/lending_fUST_20251115
["ID","MTS","AMOUNT","RATE_DAILY","PERIOD"]
[393985194,1763161852261,-178.91,0.0004186,120]
[393985195,1763161852270,-500.0,0.00041918,120]
[393985196,1763161852279,-178.91,0.0004196,120]
[393985197,1763161852288,-183.90945505,0.00042,120]
[393985198,1763161852297,-240.04574503,0.00042,120]
[393985199,1763161852306,-642.4714065,0.00042,120]
[393985200,1763161852315,-156.0,0.00042,120]
[393985201,1763161852324,-1073.62994227,0.00042,120]
[393985202,1763161852333,-178.91,0.0004206,120]
[393985203,1763161852343,-178.91,0.0004216,120]
[393985204,1763161852352,-500.0,0.00042192,120]
[393985205,1763161852362,-178.91,0.0004226,120]
[393985206,1763161852371,-178.91,0.0004236,120]
[393985207,1763161852380,-178.91,0.0004246,120]
[393985208,1763161852389,-500.0,0.00042466,120]
[393985209,1763161852398,-260.369975,0.00042498,120]
[393985210,1763161852407,-205.49,0.0004256,15]
[393985211,1763161852418,-178.91,0.0004256,120]
[393985212,1763161852427,-178.91,0.0004266,120]
[393985213,1763161852436,-629.0,0.00042732,2]
[393985214,1763161852446,-2148.0,0.00042732,2]
[393985215,1763161852455,-987.0,0.00042732,2]
[393985216,1763161852464,-413.0,0.00042732,2]
[393985217,1763161852473,-500.0,0.0004274,120]
[393985218,1763161852483,-178.91,0.0004276,120]
[393985219,1763161852492,-593.4565077,0.00042789,30]
[393985220,1763161852501,-593.4565077,0.00042789,30]
[393985221,1763161852510,-593.4565077,0.00042789,30]
[393985222,1763161852519,-593.4565077,0.00042789,30]
[393985223,1763161852528,-593.4565077,0.00042808,30]
[393985224,1763161852538,-593.4565077,0.00042808,30]
[393985225,1763161852547,-593.4565077,0.00042808,30]
[393985226,1763161852556,-178.91,0.0004286,120]
[393985227,1763161852565,-555.5255299,0.00042902,120]
[393985228,1763161852574,-178.91,0.0004296,120]
[393985229,1763161852583,-3574.48,0.00043,14]
[393985230,1763161852594,-500.0,0.00043014,120]
[393985231,1763161852602,-178.91,0.0004306,120]
[393985232,1763161852611,-178.91,0.0004316,120]
[393985233,1763161852621,-178.91,0.0004326,120]
[393985234,1763161852630,-500.0,0.00043288,120]
[393985235,1763161852639,-240.04574503,0.000433,120]
[393985236,1763161852648,-642.4714065,0.000433,120]
[393985237,1763161852657,-1073.62994227,0.000433,120]
[393985238,1763161852666,-500.0,0.00043315,30]
[393985239,1763161852675,-178.91,0.0004336,120]
[393985240,1763161852684,-178.91,0.0004346,120]
[393985241,1763161852693,-178.91,0.0004356,120]
[393985242,1763161852702,-500.0,0.00043562,120]
[393985243,1763161852711,-702.75847632,0.00043562,120]
[393985244,1763161852720,-178.91,0.0004366,120]
[393985245,1763161852729,-178.91,0.0004376,120]
[393985246,1763161852739,-372.0,0.000438,90]
[393985247,1763161852748,-1000.0,0.000438,90]
[393985248,1763161852756,-999.0,0.00043835,120]
[393985249,1763161852766,-500.0,0.00043836,120]
[393985250,1763161852776,-270.45837137,0.00043836,120]
[393985251,1763161852785,-178.91,0.0004386,120]
[393985252,1763161852794,-178.91,0.0004396,120]
[393985253,1763161852803,-1000.0,0.00044014,14]
[393985254,1763161852812,-762.0,0.00044014,14]
[393985255,1763161852821,-178.91,0.0004406,120]
[393985256,1763161852831,-1000.49,0.00044109,14]
[393985257,1763161852842,-500.0,0.0004411,120]
[393985258,1763161852852,-2692.79863043,0.00044144,2]
[393985259,1763161852864,-1000.0,0.00044151,14]
[393985260,1763161852874,-178.91,0.0004416,120]
[393985261,1763161852883,-179.66225788,0.0004426,120]
[393985262,1763161852892,-2000.0,0.00044286,21]
[393985263,1763161852902,-1000.0,0.00044288,14]
[393985264,1763161852911,-156.0,0.000443,120]
[393985265,1763161852919,-172.86832511,0.00044329,30]
[393985266,1763161852929,-179.71246006,0.00044369,30]
[393985267,1763161852939,-500.0,0.00044384,120]
[393985268,1763161852948,-1000.0,0.00044425,14]
[393985269,1763161852957,-172.86832511,0.00044548,30]
[393985270,1763161852966,-260.369975,0.00044548,120]
[393985271,1763161852976,-1000.0,0.00044562,14]
[393985272,1763161852984,-240.04574503,0.000446,120]
[393985273,1763161852993,-642.4714065,0.000446,120]
[393985274,1763161853002,-1073.62994227,0.000446,120]
[393985275,1763161853011,-500.0,0.00044658,120]
[393985276,1763161853020,-1000.0,0.00044699,14]
[393985277,1763161853029,-172.86832511,0.0004474,30]
[393985278,1763161853038,-1000.0,0.00044836,14]
[393985279,1763161853047,-589.08076325,0.00044902,120]
[393985280,1763161853056,-172.86832511,0.00044959,30]
[393985281,1763161853065,-1000.0,0.00044973,14]
[393985282,1763161853075,-1000.0,0.0004511,14]
[393985283,1763161853084,-172.86832511,0.00045178,30]
[393985284,1763161853094,-172.86832511,0.00045397,30]
[393985285,1763161853103,-1000.49,0.00045479,15]
[393985286,1763161853112,-172.86832511,0.00045616,30]
[393985287,1763161853122,-629.0,0.00045732,2]
[393985288,1763161853131,-2148.0,0.00045732,2]
[393985289,1763161853140,-987.0,0.00045732,2]
[393985290,1763161853150,-413.0,0.00045732,2]
[393985291,1763161853159,-172.86832511,0.00045808,30]
[393985292,1763161853168,-164.01,0.00046,14]
[393985293,1763161853178,-260.369975,0.00046025,10]
[393985294,1763161853187,-172.86832511,0.00046027,30]
[393985295,1763161853197,-734.575149,0.00046143,2]
[393985296,1763161853206,-260.369975,0.00046188,2]
[393985297,1763161853215,-172.86832511,0.00046247,30]
[393985298,1763161853225,-204.0,0.0004635,71]
[393985299,1763161853235,-172.86832511,0.00046466,30]
[393985300,1763161853244,-999.0,0.00046575,120]
[393985301,1763161853253,-260.369975,0.00046597,120]
[393985302,1763161853263,-160.785133,0.00046597,120]
[393985303,1763161853272,-2695.49142906,0.00046639,2]
[393985304,1763161853282,-172.86832511,0.00046685,30]
[393985305,1763161853292,-156.0,0.000467,120]
[393985306,1763161853301,-1000.49,0.00046849,16]
[393985307,1763161853311,-622.6359966,0.00046902,120]
[393985308,1763161853320,-250.0,0.00047475,120]
[393985309,1763161853330,-22000.0,0.00047688,12]
[393985310,1763161853341,-22000.0,0.00047697,12]
[393985311,1763161853351,-1000.49,0.00048219,17]
[393985312,1763161853361,-629.0,0.00048732,2]
[393985313,1763161853371,-1440.184,0.00048732,2]
[393985314,1763161853381,-987.0,0.00048732,2]
[393985315,1763161853391,-413.0,0.00048732,2]
[393985316,1763161853401,-656.19122995,0.00048902,120]
[393985317,1763161853411,-313.85626185,0.00049,15]
[393985318,1763161853421,-156.0,0.00049,120]
[393985319,1763161853431,-999.0,0.00049315,120]
[393985320,1763161853441,-151.0,0.00049315,120]
[393985321,1763161853451,-151.0,0.00049315,120]
[393985322,1763161853461,-166.200675,0.00049315,120]
[393985323,1763161853471,-1000.49,0.00049589,18]
[393985324,1763161853480,-200.0,0.0005,7]
[393985325,1763161853490,-350.0,0.0005,20]
[393985326,1763161853500,-301.79,0.0005,2]
[393985327,1763161853510,-10000.0,0.0005,30]
[393985328,1763161853520,-1021.23,0.0005,120]
[393985329,1763161853530,-260.369975,0.00050631,10]
[393985330,1763161853539,-689.7464633,0.00050902,120]
[393985331,1763161853549,-1000.49,0.00050958,19]
[393985332,1763161853559,-3000.0,0.00051,85]
[393985333,1763161853568,-3000.0,0.0005101,85]
[393985334,1763161853578,-3000.0,0.0005102,85]
[393985335,1763161853588,-3000.0,0.0005103,85]
[393985336,1763161853598,-3000.0,0.0005104,85]
[393985337,1763161853608,-3000.0,0.0005105,85]
[393985338,1763161853618,-3000.0,0.0005106,85]
[393985339,1763161853627,-3000.0,0.0005107,85]
[393985340,1763161853637,-3006.12511,0.0005108,85]
[393985341,1763161853647,-156.0,0.000513,120]
[393985342,1763161853658,-2000.0,0.00051429,21]
[393985343,1763161853668,-629.0,0.00051732,120]
[393985344,1763161853678,-987.0,0.00051732,120]
[393985345,1763161853688,-413.0,0.00051732,120]
[393985346,1763161853698,-200.0,0.00052301,120]
[393985347,1763161853708,-1000.49,0.00052328,20]
[393985348,1763161853718,-734.575149,0.00052632,2]
[393985349,1763161853727,-51459.46,0.000529,30]
[393985350,1763161853737,-1300.811678,0.000529,120]
[393985351,1763161853747,-723.30169665,0.00052902,120]
[393985352,1763161853756,-1000.0,0.00053,120]
[393985353,1763161853766,-1000.0,0.00053,120]
[393985354,1763161853775,-500.0,0.0005315,60]
[393985355,1763161853785,-260.369975,0.00053284,2]
[393985356,1763161853795,-160.785133,0.00053284,2]
[393985357,1763161853804,-914.4441,0.0005344,30]
[393985358,1763161853814,-876.64348737,0.000535,120]
[393985359,1763161853823,-569.29137518,0.00053616,30]
[393985360,1763161853833,-500.0,0.00053698,60]
[393985361,1763161853845,-1000.49,0.00053698,21]
[393985362,1763161853855,-156.0,0.000537,120]
[393985363,1763161853866,-13154.179821,0.00053995,120]
[393985364,1763161853880,-7146.78,0.00054,7]
[393985365,1763161853890,-389.0,0.00054,120]
[393985366,1763161853900,-1000.0,0.00054,60]
[393985367,1763161853911,-9000.0,0.000542,120]
[393985368,1763161853921,-4000.0,0.000542,120]
[393985369,1763161853930,-500.0,0.00054246,60]
[393985370,1763161853940,-372.2915438,0.00054678,75]
[393985371,1763161853950,-2000.0,0.000547,60]
[393985372,1763161853961,-606.4825481,0.00054712,30]
[393985373,1763161853971,-395.2109804,0.00054712,30]
[393985374,1763161853980,-395.2109804,0.00054712,30]
[393985375,1763161853990,-395.2109804,0.00054712,30]
[393985376,1763161853999,-395.2109804,0.00054712,30]
[393985377,1763161854008,-395.2109804,0.00054712,30]
[393985378,1763161854017,-684.4765542,0.00054712,30]
[393985379,1763161854026,-395.2109804,0.00054712,30]
[393985380,1763161854035,-395.2109804,0.00054712,30]
[393985381,1763161854044,-629.0,0.00054732,120]
[393985382,1763161854053,-987.0,0.00054732,120]
[393985383,1763161854063,-413.0,0.00054732,120]
[393985384,1763161854072,-395.2109804,0.0005474,30]
[393985385,1763161854081,-313.21,0.0005476,120]
[393985386,1763161854193,-500.0,0.00054794,120]
[393985387,1763161854203,-1573.84,0.00054794,120]
[393985388,1763161854213,-500.0,0.00054794,120]
[393985389,1763161854222,-500.0,0.00054794,120]
[393985390,1763161854231,-500.0,0.00054794,120]
[393985391,1763161854240,-500.0,0.00054794,120]
[393985392,1763161854250,-500.0,0.00054794,120]
[393985393,1763161854259,-500.0,0.00054794,120]
[393985394,1763161854268,-500.0,0.00054794,120]
[393985395,1763161854278,-500.0,0.00054794,120]
[393985396,1763161854288,-524.23003345,0.00054794,120]
[393985397,1763161854297,-500.0,0.00054794,2]
[393985398,1763161854306,-500.0,0.00054794,120]
[393985399,1763161854315,-500.0,0.00054794,120]
[393985400,1763161854325,-500.0,0.00054794,120]
[393985401,1763161854335,-506.05403152,0.00054794,120]
[393985402,1763161854347,-500.0,0.00054794,120]
[393985403,1763161854356,-500.0,0.00054794,120]
[393985404,1763161854365,-1000.0,0.00054794,120]
[393985405,1763161854375,-502.60912032,0.00054794,120]
[393985406,1763161854384,-500.0,0.00054794,120]
[393985407,1763161854394,-367.97346026,0.00054794,120]
[393985408,1763161854403,-500.0,0.00054794,120]
[393985409,1763161854412,-500.0,0.00054794,30]
[393985410,1763161854421,-500.0,0.00054794,2]
[393985411,1763161854430,-473.87248705,0.00054794,120]
[393985412,1763161854440,-500.0,0.00054794,120]
[393985413,1763161854449,-500.0,0.00054794,120]
[393985414,1763161854458,-500.0,0.00054794,120]
[393985415,1763161854467,-500.0,0.00054794,120]
[393985416,1763161854476,-260.86105863,0.00054794,30]
[393985417,1763161854485,-516.72480671,0.00054794,120]
[393985418,1763161854495,-500.0,0.00054794,120]
[393985419,1763161854504,-500.0,0.00054794,120]
[393985420,1763161854513,-303.85774517,0.00054794,120]
[393985421,1763161854522,-500.0,0.00054794,120]
[393985422,1763161854531,-500.0,0.00054794,120]
[393985423,1763161854540,-500.0,0.00054794,120]
[393985424,1763161854550,-593.25877437,0.00054794,120]
[393985425,1763161854560,-500.0,0.00054794,120]
[393985426,1763161854569,-500.0,0.00054794,120]
[393985427,1763161854578,-500.0,0.00054794,120]
[393985428,1763161854589,-500.0,0.00054794,120]
[393985429,1763161854599,-500.0,0.00054794,120]
[393985430,1763161854608,-500.0,0.00054794,120]
[393985431,1763161854617,-500.0,0.00054794,120]
[393985432,1763161854626,-500.0,0.00054794,120]
[393985433,1763161854635,-500.0,0.00054794,120]
[393985434,1763161854645,-500.0,0.00054794,120]
[393985435,1763161854654,-500.0,0.00054794,30]
[393985436,1763161854663,-500.0,0.00054794,120]
[393985437,1763161854672,-500.0,0.00054794,120]
[393985438,1763161854681,-519.70740578,0.00054794,120]
[393985439,1763161854690,-500.44899898,0.00054794,120]
[393985440,1763161854699,-500.0,0.00054794,120]
[393985441,1763161854709,-500.0,0.00054794,120]
[393985442,1763161854718,-500.0,0.00054794,120]
[393985443,1763161854727,-500.0,0.00054794,120]
[393985444,1763161854736,-500.0,0.00054794,20]
[393985445,1763161854745,-500.0,0.00054794,120]
[393985446,1763161854754,-500.0,0.00054794,120]
[393985447,1763161854764,-500.0,0.00054794,120]
[393985448,1763161854773,-500.0,0.00054794,120]
[393985449,1763161854783,-500.0,0.00054794,120]
[393985450,1763161854792,-758.94,0.00054794,120]
[393985451,1763161854802,-500.0,0.00054794,120]
[393985452,1763161854811,-500.0,0.00054794,120]
[393985453,1763161854820,-500.0,0.00054794,120]
[393985454,1763161854829,-500.0,0.00054794,120]
[393985455,1763161854841,-500.0,0.00054794,120]
[393985456,1763161854850,-500.0,0.00054794,120]
[393985457,1763161854862,-500.0,0.00054794,120]
[393985458,1763161854872,-500.0,0.00054794,120]
[393985459,1763161854881,-549.04376058,0.00054794,120]
[393985460,1763161854890,-182.86316637,0.00054794,120]
[393985461,1763161854900,-500.0,0.00054794,120]
[393985462,1763161854909,-500.0,0.00054794,10]
[393985463,1763161854919,-536.34,0.00054794,120]
[393985464,1763161854928,-500.0,0.00054794,120]
[393985465,1763161854938,-221.43,0.00054794,120]
[393985466,1763161854947,-500.0,0.00054794,120]
[393985467,1763161854957,-500.0,0.00054794,120]
[393985468,1763161854966,-500.0,0.00054794,120]
[393985469,1763161854975,-500.0,0.00054794,120]
[393985470,1763161854984,-554.15,0.00054794,120]
[393985471,1763161854993,-500.0,0.00054794,120]
[393985472,1763161855002,-500.0,0.00054794,120]
[393985473,1763161855011,-500.0,0.00054794,120]
[393985474,1763161855020,-513.09682823,0.00054794,120]
[393985475,1763161855029,-500.0,0.00054794,120]
[393985476,1763161855038,-477.62386671,0.00054794,120]
[393985477,1763161855047,-500.0,0.00054794,120]
[393985478,1763161855056,-500.0,0.00054794,120]
[393985479,1763161855066,-500.0,0.00054794,120]
[393985480,1763161855075,-500.0,0.00054794,120]
[393985481,1763161855085,-500.0,0.00054794,120]
[393985482,1763161855099,-500.0,0.00054794,120]
[393985483,1763161855108,-500.0,0.00054794,120]
[393985484,1763161855117,-628.39,0.00054794,120]
[393985485,1763161855126,-500.0,0.00054794,120]
[393985486,1763161855136,-500.0,0.00054794,120]
[393985487,1763161855145,-500.0,0.00054794,120]
[393985488,1763161855154,-516.54658001,0.00054794,120]
[393985489,1763161855164,-506.05538278,0.00054794,120]
[393985490,1763161855173,-500.0,0.00054794,120]
[393985491,1763161855182,-500.0,0.00054794,120]
[393985492,1763161855191,-500.0,0.00054794,120]
[393985493,1763161855201,-202.45097806,0.00054794,120]
[393985494,1763161855210,-500.0,0.00054794,120]
[393985495,1763161855220,-509.12492554,0.00054794,120]
[393985496,1763161855229,-500.0,0.00054794,120]
[393985497,1763161855239,-500.0,0.00054794,120]
[393985498,1763161855247,-500.0,0.00054794,120]
[393985499,1763161855257,-500.0,0.00054794,120]
[393985500,1763161855266,-500.0,0.00054794,120]
[393985501,1763161855275,-500.0,0.00054794,120]
[393985502,1763161855284,-790.33,0.00054794,120]
[393985503,1763161855293,-500.0,0.00054794,120]
[393985504,1763161855302,-582.61,0.00054794,120]
[393985505,1763161855311,-500.0,0.00054794,120]
[393985506,1763161855320,-500.0,0.00054794,120]
[393985507,1763161855329,-500.0,0.00054794,120]
[393985508,1763161855339,-500.0,0.00054794,120]
[393985509,1763161855348,-500.0,0.00054794,120]
[393985510,1763161855358,-500.0,0.00054794,120]
[393985511,1763161855367,-500.0,0.00054794,120]
[393985512,1763161855376,-500.0,0.00054794,30]
[393985513,1763161855386,-500.0,0.00054794,14]
[393985514,1763161855395,-500.0,0.00054794,120]
[393985515,1763161855404,-500.0,0.00054794,120]
[393985516,1763161855414,-500.0,0.00054794,120]
[393985517,1763161855423,-500.0,0.00054794,120]
[393985518,1763161855432,-500.0,0.00054794,120]
[393985519,1763161855441,-500.0,0.00054794,120]
[393985520,1763161855451,-731.23,0.00054794,120]
[393985521,1763161855460,-500.0,0.00054794,120]
[393985522,1763161855470,-500.0,0.00054794,120]
[393985523,1763161855479,-500.0,0.00054794,120]
[393985524,1763161855488,-673.29,0.00054794,120]
[393985525,1763161855499,-500.0,0.00054794,120]
[393985526,1763161855508,-410.41645068,0.00054794,120]
[393985527,1763161855517,-500.0,0.00054794,120]
[393985528,1763161855526,-500.0,0.00054794,120]
[393985529,1763161855535,-500.0,0.00054794,120]
[393985530,1763161855544,-500.0,0.00054794,120]
[393985531,1763161855554,-500.0,0.00054794,120]
[393985532,1763161855563,-500.0,0.00054794,120]
[393985533,1763161855572,-500.0,0.00054794,120]
[393985534,1763161855581,-163.04482425,0.00054794,120]
[393985535,1763161855593,-500.0,0.00054794,120]
[393985536,1763161855602,-500.0,0.00054794,120]
[393985537,1763161855611,-1000.0,0.00054794,2]
[393985538,1763161855620,-570.67,0.00054794,120]
[393985539,1763161855629,-502.67449912,0.00054794,120]
[393985540,1763161855638,-500.0,0.00054794,120]
[393985541,1763161855647,-500.0,0.00054794,120]
[393985542,1763161855656,-544.65,0.00054794,120]
[393985543,1763161855665,-500.0,0.00054794,120]
[393985544,1763161855675,-500.0,0.00054794,120]
[393985545,1763161855684,-500.0,0.00054794,120]
[393985546,1763161855693,-500.0,0.00054794,120]
[393985547,1763161855702,-500.0,0.00054794,120]
[393985548,1763161855718,-500.0,0.00054794,120]
[393985549,1763161855727,-500.0,0.00054794,120]
[393985550,1763161855736,-500.0,0.00054794,120]
[393985551,1763161855745,-500.0,0.00054794,120]
[393985552,1763161855754,-500.0,0.00054794,120]
[393985553,1763161855763,-500.0,0.00054794,120]
[393985554,1763161855773,-1377.14,0.00054794,7]
[393985555,1763161855782,-377.09577095,0.00054794,120]
[393985556,1763161855791,-500.0,0.00054794,120]
[393985557,1763161855799,-500.0,0.00054794,120]
[393985558,1763161855808,-500.0,0.00054794,120]
[393985559,1763161855817,-500.0,0.00054794,120]
[393985560,1763161855826,-415.99326756,0.00054794,120]
[393985561,1763161855835,-500.0,0.00054794,120]
[393985562,1763161855847,-500.0,0.00054794,120]
[393985563,1763161855856,-618.21,0.00054794,120]
[393985564,1763161855865,-500.0,0.00054794,120]
[393985565,1763161855878,-500.0,0.00054794,120]
[393985566,1763161855887,-500.0,0.00054794,120]
[393985567,1763161855896,-500.0,0.00054794,120]
[393985568,1763161855906,-500.0,0.00054794,120]
[393985569,1763161855915,-500.0,0.00054794,120]
[393985570,1763161855924,-500.0,0.00054794,120]
[393985571,1763161855933,-3399.99,0.00054794,2]
[393985572,1763161855943,-500.0,0.00054794,120]
[393985573,1763161855954,-500.0,0.00054794,120]
[393985574,1763161855963,-500.0,0.00054794,120]
[393985575,1763161855973,-500.0,0.00054794,120]
[393985576,1763161855982,-500.0,0.00054794,120]
[393985577,1763161855992,-686.79,0.00054794,120]
[393985578,1763161856000,-500.0,0.00054794,120]
[393985579,1763161856009,-500.0,0.00054794,120]
[393985580,1763161856018,-1173.83,0.00054794,120]
[393985581,1763161856027,-458.93935825,0.00054794,120]
[393985582,1763161856036,-509.38169594,0.00054794,120]
[393985583,1763161856046,-500.0,0.00054794,120]
[393985584,1763161856055,-505.1,0.00054794,120]
[393985585,1763161856065,-500.0,0.00054794,120]
[393985586,1763161856074,-500.0,0.00054794,120]
[393985587,1763161856083,-500.0,0.00054794,120]
[393985588,1763161856094,-500.0,0.00054794,120]
[393985589,1763161856103,-500.0,0.00054794,120]
[393985590,1763161856112,-500.0,0.00054794,120]
[393985591,1763161856121,-500.0,0.00054794,120]
[393985592,1763161856131,-565.97,0.00054794,120]
[393985593,1763161856140,-655.84,0.00054794,120]
[393985594,1763161856149,-646.33,0.00054794,120]
[393985595,1763161856158,-500.0,0.00054794,120]
[393985596,1763161856167,-349.80094393,0.00054794,120]
[393985597,1763161856177,-454.62056366,0.00054794,120]
[393985598,1763161856186,-557.20223839,0.00054794,120]
[393985599,1763161856195,-500.0,0.00054794,120]
[393985600,1763161856204,-500.0,0.00054794,120]
[393985601,1763161856214,-500.0,0.00054794,120]
[393985602,1763161856223,-500.0,0.00054794,120]
[393985603,1763161856232,-507.53,0.00054794,2]
[393985604,1763161856242,-240.57085711,0.00054794,120]
[393985605,1763161856251,-500.0,0.00054794,120]
[393985606,1763161856260,-500.0,0.00054794,120]
[393985607,1763161856270,-500.0,0.00054794,120]
[393985608,1763161856279,-500.0,0.00054794,120]
[393985609,1763161856288,-500.0,0.00054794,120]
[393985610,1763161856297,-500.0,0.00054794,120]
[393985611,1763161856306,-500.0,0.00054794,120]
[393985612,1763161856315,-500.0,0.00054794,120]
[393985613,1763161856325,-579.52,0.00054794,120]
[393985614,1763161856334,-585.97,0.00054794,120]
[393985615,1763161856346,-500.0,0.00054794,120]
[393985616,1763161856356,-500.0,0.00054794,120]
[393985617,1763161856365,-500.0,0.00054794,120]
[393985618,1763161856375,-500.0,0.00054794,120]
[393985619,1763161856385,-500.0,0.00054794,120]
[393985620,1763161856394,-500.0,0.00054794,120]
[393985621,1763161856403,-500.0,0.00054794,120]
[393985622,1763161856413,-226.26504127,0.00054794,120]
[393985623,1763161856423,-500.0,0.00054794,120]
[393985624,1763161856432,-500.0,0.00054794,120]
[393985625,1763161856442,-500.0,0.00054794,120]
[393985626,1763161856452,-500.0,0.00054794,120]
[393985627,1763161856461,-500.0,0.00054794,120]
[393985628,1763161856470,-500.0,0.00054794,120]
[393985629,1763161856480,-500.0,0.00054794,120]
[393985630,1763161856489,-500.0,0.00054794,120]
[393985631,1763161856498,-500.0,0.00054794,120]
[393985632,1763161856508,-500.0,0.00054794,120]
[393985633,1763161856517,-500.0,0.00054794,120]
[393985634,1763161856526,-500.0,0.00054794,120]
[393985635,1763161856535,-500.0,0.00054794,120]
[393985636,1763161856544,-500.0,0.00054794,120]
[393985637,1763161856554,-551.26,0.00054794,120]
[393985638,1763161856563,-500.0,0.00054794,120]
[393985639,1763161856573,-500.0,0.00054794,120]
[393985640,1763161856583,-293.74773452,0.00054794,120]
[393985641,1763161856593,-691.1,0.00054794,120]
[393985642,1763161856603,-505.79,0.00054794,120]
[393985643,1763161856612,-500.0,0.00054794,120]
[393985644,1763161856621,-500.0,0.00054794,120]
[393985645,1763161856630,-500.0,0.00054794,120]
[393985646,1763161856639,-500.0,0.00054794,120]
[393985647,1763161856649,-500.0,0.00054794,120]
[393985648,1763161856658,-500.0,0.00054794,120]
[393985649,1763161856668,-500.0,0.00054794,120]
[393985650,1763161856677,-500.0,0.00054794,120]
[393985651,1763161856686,-500.0,0.00054794,120]
[393985652,1763161856696,-500.0,0.00054794,120]
[393985653,1763161856705,-500.0,0.00054794,120]
[393985654,1763161856722,-500.0,0.00054794,120]
[393985655,1763161856736,-500.0,0.00054794,120]
[393985656,1763161856745,-756.52,0.00054794,120]
[393985657,1763161856754,-500.0,0.00054794,120]
[393985658,1763161856763,-500.0,0.00054794,120]
[393985659,1763161856772,-812.25,0.00054794,2]
[393985660,1763161856782,-784.8,0.00054794,120]
[393985661,1763161856791,-500.0,0.00054794,120]
[393985662,1763161856801,-500.0,0.00054794,120]
[393985663,1763161856810,-603.11,0.00054794,120]
[393985664,1763161856819,-500.0,0.00054794,120]
[393985665,1763161856828,-828.96,0.00054794,120]
[393985666,1763161856837,-500.0,0.00054794,120]
[393985667,1763161856849,-500.0,0.00054794,120]
[393985668,1763161856859,-546.33,0.00054794,120]
[393985669,1763161856871,-562.64,0.00054794,120]
[393985670,1763161856881,-500.0,0.00054794,120]
[393985671,1763161856891,-500.0,0.00054794,120]
[393985672,1763161856900,-1011.37,0.00054794,120]
[393985673,1763161856910,-500.0,0.00054794,120]
[393985674,1763161856919,-500.0,0.00054794,120]
[393985675,1763161856928,-500.0,0.00054794,120]
[393985676,1763161856939,-500.0,0.00054794,120]
[393985677,1763161856948,-500.0,0.00054794,120]
[393985678,1763161856958,-500.0,0.00054794,120]
[393985679,1763161856967,-219.6449877,0.00054794,120]
[393985680,1763161856976,-500.0,0.00054794,120]
[393985681,1763161856986,-500.0,0.00054794,120]
[393985682,1763161856996,-500.0,0.00054794,120]
[393985683,1763161857005,-500.0,0.00054794,120]
[393985684,1763161857136,-500.0,0.00054794,120]
[393985685,1763161857145,-500.0,0.00054794,120]
[393985686,1763161857154,-500.0,0.00054794,120]
[393985687,1763161857163,-600.08904264,0.00054794,120]
[393985688,1763161857172,-500.0,0.00054794,120]
[393985689,1763161857181,-500.0,0.00054794,120]
[393985690,1763161857190,-500.0,0.00054794,120]
[393985691,1763161857199,-500.0,0.00054794,120]
[393985692,1763161857208,-500.0,0.00054794,120]
[393985693,1763161857217,-500.0,0.00054794,120]